fUST/lending_fUST_20250624
["ID","MTS","AMOUNT","RATE_DAILY","PERIOD"]
[367226916,1750707888041,190.727251,0.00018405,2]
[367226917,1750707888289,190.727251,0.00018405,120]
[367226918,1750707891515,-176.0325545,0.00019158,2]
[367226919,1750707893523,230.7056278,0.00018237,2]
[367226924,1750707899623,589.74896907,0.0001911,2]
[367226929,1750707956082,-305.99317032,0.00019158,2]
[367226930,1750707956111,-334.188566,0.00019178,2]
[367226931,1750707956138,-300.0,0.00019252,2]
[367226932,1750707956166,-300.0,0.00019252,2]
[367226933,1750707956194,-986.30319403,0.00019252,2]
[367226934,1750707956280,-213.69680597,0.00019252,2]
[367226935,1750707956327,-1868.46666667,0.00019253,2]
[367226936,1750707956349,-929.73333333,0.00019253,2]
[367226937,1750707957511,-461.24,0.00019253,2]
[367226938,1750707957541,-482.18,0.00019253,2]
[367226939,1750707957570,-460.0,0.00019253,2]
[367226940,1750707957598,-489.94884704,0.00019253,2]
[367226941,1750707957679,-879.92897259,0.00019253,2]
[367226942,1750707957712,-315.87102741,0.00019253,2]
[367226943,1750707957740,-460.0,0.00019253,2]
[367226944,1750707957767,-460.0,0.00019253,2]
[367226945,1750707957795,-460.0,0.00019253,2]
[367226946,1750707957824,-460.0,0.00019253,2]
[367226947,1750707957919,-354.92461185,0.00019253,2]
[367226948,1750707957952,-105.07538815,0.00019253,2]
[367226949,1750707957981,-658.43,0.00019253,2]
[367226950,1750707958010,-1135.96,0.00019253,2]
[367226951,1750707958045,-341.897766,0.00019253,2]
[367226952,1750707958226,-183.94035837,0.00019253,2]
[367226953,1750707958256,-1453.42594993,0.00019253,2]
[367226954,1750707958325,-1391.93405007,0.00019253,2]
[367226955,1750707958336,-183.94035837,0.00019253,2]
[367226956,1750707958382,-473.96964163,0.00019253,2]
[367226957,1750707958422,-460.0,0.00019253,2]
[367226958,1750707958456,-460.0,0.00019253,2]
[367226959,1750707958492,-460.0,0.00019253,2]
[367226960,1750707958530,-297.55738341,0.00019253,2]
[367226961,1750707958635,-363.61261659,0.00019253,2]
[367226962,1750707958681,-454.77308088,0.00019253,2]
[367226963,1750707958716,-362.82933591,0.00019253,2]
[367226964,1750707958746,-460.0,0.00019253,2]
[367226965,1750707958781,-908.04,0.00019253,2]
[367226966,1750707958840,-460.0,0.00019253,2]
[367226967,1750707958877,-460.0,0.00019256,2]
[367226968,1750707958913,-500.0,0.00019256,2]
[367226969,1750707958944,-500.0,0.00019256,2]
[367226970,1750707958980,-366.66666667,0.00019256,2]
[367226971,1750707959074,-93.33333333,0.00019256,2]
[367226972,1750707959108,-1206.51,0.00019256,2]
[367226973,1750707959142,-761.59,0.00019256,2]
[367226974,1750707959175,-83.80000001,0.00019256,2]
[367226975,1750707959307,-376.19999999,0.00019256,2]
[367226976,1750707959340,-344.38559895,0.00019256,2]
[367226977,1750707959372,-709.21,0.00019256,2]
[367226978,1750707959407,-457.88070294,0.00019256,2]
[367226979,1750707959440,-187.87035135,0.00019256,2]
[367226980,1750707959471,-55.57336021,0.00019256,2]
[367226981,1750707959633,-404.42663979,0.00019256,2]
[367226982,1750707959667,-460.0,0.00019256,2]
[367226983,1750707959703,-247.28143207,0.00019256,2]
[367226984,1750707959736,-641.5508543,0.00019256,2]
[367226985,1750707959768,-241.23697442,0.00019256,2]
[367226986,1750707959801,-217.67486551,0.00019256,2]
[367226987,1750707959969,-242.32513449,0.00019256,2]
[367226988,1750707960000,-496.26,0.00019256,2]
[367226989,1750707960035,-460.0,0.00019256,2]
[367226990,1750707960067,-1001.02639769,0.00019256,2]
[367226991,1750707960188,-267.44360231,0.00019256,2]
[367226992,1750707960220,-500.0,0.00019257,2]
[367226993,1750707960252,-500.0,0.00019257,2]
[367226994,1750707960284,-500.0,0.00019257,2]
[367226995,1750707960314,-460.0,0.00019257,2]
[367226996,1750707960431,-460.0,0.00019257,2]
[367226997,1750707960459,-460.0,0.00019257,2]
[367226998,1750707960487,-460.0,0.00019257,2]
[367226999,1750707960514,-460.0,0.00019257,2]
[367227000,1750707960541,-257.46666667,0.00019257,2]
[367227001,1750707960946,-471.73333333,0.00019257,2]
[367227002,1750707960974,-460.0,0.00019257,2]
[367227003,1750707961001,-460.0,0.00019257,2]
[367227004,1750707961033,-460.0,0.00019257,2]
[367227005,1750707961061,-460.0,0.00019257,2]
[367227006,1750707961182,-460.0,0.00019257,2]
[367227007,1750707961208,-460.0,0.00019257,2]
[367227008,1750707961236,-460.0,0.00019257,2]
[367227009,1750707961262,-460.0,0.00019257,2]
[367227010,1750707961291,-460.0,0.00019257,2]
[367227011,1750707961472,-460.0,0.00019257,2]
[367227012,1750707961498,-478.84257984,0.00019257,2]
[367227013,1750707961524,-460.0,0.00019257,2]
[367227014,1750707961552,-460.0,0.00019257,2]
[367227015,1750707961578,-460.0,0.00019257,2]
[367227016,1750707961706,-300.0,0.00019252,2]
[367227017,1750707961734,-460.0,0.00019257,2]
[367227018,1750707961762,-460.0,0.00019257,2]
[367227019,1750707961789,-460.0,0.00019257,2]
[367227020,1750707961815,-460.0,0.00019257,2]
[367227021,1750707961910,-574.99407146,0.00019257,2]
[367227022,1750707961938,-460.0,0.00019257,2]
[367227023,1750707961965,-460.0,0.00019257,2]
[367227024,1750707961994,-460.0,0.00019257,2]
[367227025,1750707962026,-296.67852375,0.00019257,2]
[367227026,1750707962113,-163.32147625,0.00019257,2]
[367227027,1750707962142,-460.0,0.00019257,2]
[367227028,1750707962170,-460.0,0.00019257,2]
[367227029,1750707962210,-460.0,0.00019257,2]
[367227030,1750707962243,-460.0,0.00019257,2]
[367227031,1750707962272,-200.02371417,0.00019257,2]
[367227032,1750707962321,-259.97628583,0.00019257,2]
[367227033,1750707962355,-260.95225659,0.00019257,2]
[367227034,1750707962385,-836.62,0.00019257,2]
[367227035,1750707962416,-460.0,0.00019257,2]
[367227036,1750707962445,-460.0,0.00019257,2]
[367227037,1750707962489,-460.0,0.00019257,2]
[367227038,1750707962518,-460.0,0.00019257,2]
[367227039,1750707962547,-611.16666667,0.00019257,2]
[367227040,1750707962679,-1604.33333333,0.00019257,2]
[367227041,1750707962708,-460.0,0.00019257,2]
[367227042,1750707962739,-78.00000001,0.00019257,2]
[367227043,1750707962831,-381.99999999,0.00019257,2]
[367227044,1750707962861,-460.0,0.00019257,2]
[367227045,1750707962894,-460.0,0.00019257,2]
[367227046,1750707962925,-460.0,0.00019257,2]
[367227047,1750707962958,-482.15,0.00019258,2]
[367227048,1750707963452,-1715.01666667,0.00019258,2]
[367227049,1750707963488,-1236.63333333,0.00019258,2]
[367227050,1750707963517,-460.0,0.00019258,2]
[367227051,1750707963696,-2271.50666667,0.00019258,2]
[367227052,1750707963796,-123.65333333,0.00019258,2]
[367227053,1750707963825,-1917.35,0.00019258,2]
[367227054,1750707963959,-553.26666667,0.00019258,2]
[367227055,1750707964832,-300.0,0.00019256,2]
[367227056,1750707964842,-114.0315868,0.00019258,2]
[367227057,1750707964856,-1236.63333333,0.00019258,2]
[367227058,1750707964871,-460.0,0.00019258,2]
[367227059,1750707964892,-1273.40000001,0.00019258,2]
[367227060,1750707964906,-476.06841319,0.00019258,2]
[367227061,1750707964916,-1676.14,0.00019258,2]
[367227062,1750707964927,-242.95158681,0.00019258,2]
[367227063,1750707964949,-123.65333333,0.00019258,2]
[367227064,1750707964994,-93.39507986,0.00019258,2]
[367227065,1750707965003,-460.0,0.00019258,2]
[367227066,1750707965013,-1363.95492014,0.00019258,2]
[367227067,1750707965031,-584.66000001,0.00019258,2]
[367227068,1750707965045,-1686.06507985,0.00019258,2]
[367227069,1750707965055,-460.0,0.00019258,2]
[367227070,1750707965066,-279.44,0.00019259,2]
[367227071,1750707965076,-500.0,0.00019259,2]
[367227072,1750707965087,-500.0,0.00019259,2]
[367227073,1750707965097,-338.17687668,0.00019259,2]
[367227074,1750707965107,-349.71804347,0.00019259,2]
[367227075,1750707988208,5000.0,0.0001911,2]
[367227077,1750708002126,373.514121,0.00018261,2]
[367227078,1750708003565,5000.0,0.0001911,2]
[367227079,1750708003659,-460.0,0.00019252,2]
[367227080,1750708003688,-857.17,0.00019253,2]
[367227081,1750708003716,-192.05333333,0.00019253,2]
[367227082,1750708003769,-314.88666667,0.00019253,2]
[367227083,1750708003805,-460.0,0.00019256,2]
[367227084,1750708003833,-460.0,0.00019256,2]
[367227085,1750708003861,-460.0,0.00019256,2]
[367227086,1750708003891,-113.33333333,0.00019256,2]
[367227087,1750708003956,-346.66666667,0.00019256,2]
[367227088,1750708003992,-460.0,0.00019257,2]
[367227089,1750708004022,-460.0,0.00019257,2]
[367227090,1750708004055,-460.0,0.00019257,2]
[367227091,1750708004086,-113.33333333,0.00019257,2]
[367227092,1750708004154,-346.66666667,0.00019257,2]
[367227093,1750708004183,-460.0,0.00019257,2]
[367227094,1750708004211,-460.0,0.00019257,2]
[367227095,1750708004239,-339.99999999,0.00019257,2]
[367227096,1750708004339,-120.00000001,0.00019257,2]
[367227097,1750708004368,-460.0,0.00019257,2]
[367227098,1750708004397,-460.0,0.00019257,2]
[367227099,1750708004428,-460.0,0.00019257,2]
[367227100,1750708004525,-460.0,0.00019257,2]
[367227101,1750708004554,-460.0,0.00019257,2]
[367227102,1750708004583,-460.0,0.00019257,2]
[367227103,1750708004615,-32.66333333,0.00019257,2]
[367227104,1750708004718,-508.00666667,0.00019257,2]
[367227105,1750708004745,-460.0,0.00019257,2]
[367227106,1750708004774,-460.0,0.00019257,2]
[367227107,1750708004864,-946.81333333,0.00019257,2]
[367227108,1750708004956,-1439.70666667,0.00019257,2]
[367227109,1750708005150,-150.28195653,0.00019259,2]
[367227110,1750708005265,-460.0,0.0001926,2]
[367227111,1750708005292,-469.62692265,0.0001926,2]
[367227112,1750708005319,-460.0,0.0001926,2]
[367227113,1750708005347,-94.07948803,0.0001926,2]
[367227114,1750708005416,-271.33829945,0.0001926,2]
[367227115,1750708005436,-94.58221252,0.0001926,2]
[367227116,1750708005445,-525.70748846,0.0001926,2]
[367227117,1750708005455,-460.0,0.0001926,2]
[367227118,1750708005464,-359.41696569,0.0001926,2]
[367227119,1750708005503,-100.58303431,0.0001926,2]
[367227120,1750708005533,-460.0,0.0001926,2]
[367227121,1750708005561,-460.0,0.0001926,2]
[367227122,1750708005590,-460.0,0.0001926,2]
[367227123,1750708005668,-541.16748903,0.00019257,2]
[367227124,1750708005698,-460.0,0.0001926,2]
[367227125,1750708005728,-460.0,0.0001926,2]
[367227126,1750708005797,-432.24299732,0.0001926,2]
[367227127,1750708005827,-460.0,0.0001926,2]
[367227128,1750708005856,-169.28817382,0.0001926,2]
[367227129,1750708005887,-460.0,0.0001926,2]
[367227130,1750708006000,-553.82954018,0.00019253,2]
[367227131,1750708006031,-460.0,0.0001926,2]
[367227132,1750708006063,-460.0,0.0001926,2]
[367227133,1750708006129,-460.0,0.0001926,2]
[367227134,1750708006157,-460.0,0.0001926,2]
[367227135,1750708006185,-721.05,0.0001926,2]
[367227136,1750708006325,-460.0,0.0001926,2]
[367227137,1750708006354,-500.0,0.0001926,2]
[367227138,1750708006383,-460.0,0.0001926,2]
[367227139,1750708006496,-1540.91,0.0001926,2]
[367227140,1750708006605,-460.0,0.0001926,2]
[367227141,1750708006633,-460.0,0.0001926,2]
[367227142,1750708006662,-460.0,0.0001926,2]
[367227143,1750708006692,-113.33333333,0.0001926,2]
[367227144,1750708006791,-346.66666667,0.0001926,2]
[367227145,1750708006820,-460.0,0.0001926,2]
[367227146,1750708006848,-719.99999999,0.0001926,2]
[367227147,1750708006992,-280.00000001,0.0001926,2]
[367227148,1750708007021,-460.0,0.0001926,2]
[367227149,1750708007053,-460.0,0.0001926,2]
[367227150,1750708007084,-433.33333331,0.0001926,2]
[367227151,1750708007162,-66.66666669,0.0001926,2]
[367227152,1750708007191,-500.0,0.0001926,2]
[367227153,1750708007221,-927.58516631,0.0001926,2]
[367227154,1750708007356,-927.58516631,0.0001926,2]
[367227155,1750708007385,-436.72381368,0.0001926,2]
[367227156,1750708007476,-927.58516631,0.0001926,2]
[367227157,1750708007506,-550.5778344,0.0001926,2]
[367227158,1750708007666,-377.00733191,0.0001926,2]
[367227159,1750708007696,-927.58516631,0.0001926,2]
[367227160,1750708007771,-927.58516631,0.0001926,2]
[367227161,1750708007802,-550.5778344,0.0001926,2]
[367227162,1750708007871,-377.00733191,0.0001926,2]
[367227163,1750708007903,-927.58516631,0.0001926,2]
[367227164,1750708008174,-927.58516631,0.0001926,2]
[367227165,1750708008209,-550.5778344,0.0001926,2]
[367227166,1750708008503,-377.00733191,0.0001926,2]
[367227167,1750708008538,-927.58516631,0.0001926,2]
[367227168,1750708008636,-927.58516631,0.0001926,2]
[367227169,1750708008668,-550.5778344,0.0001926,2]
[367227170,1750708008837,-377.00733191,0.0001926,2]
[367227171,1750708008871,-927.58516631,0.0001926,2]
[367227172,1750708008974,-927.58516631,0.0001926,2]
[367227173,1750708008992,-377.00733191,0.0001926,2]
[367227174,1750708009007,-550.5778344,0.0001926,2]
[367227175,1750708009016,-377.00733191,0.0001926,2]
[367227176,1750708009032,-550.5778344,0.0001926,2]
[367227177,1750708009044,-173.57050249,0.0001926,2]
[367227178,1750708009098,-754.01466382,0.0001926,2]
[367227179,1750708009107,-173.57050249,0.00019261,2]
[367227180,1750708009121,-41.60349751,0.00019261,2]
[367227181,1750708009131,-460.0,0.00019261,2]
[367227182,1750708009140,-425.9816688,0.00019261,2]
[367227183,1750708009167,-74.0183312,0.00019261,2]
[367227184,1750708009176,-302.98900071,0.00019261,2]
[367227185,1750708009191,-197.01099929,0.00019261,2]
[367227186,1750708009202,-460.0,0.00019261,2]
[367227187,1750708009214,-270.57416702,0.00019261,2]
[367227188,1750708009232,-328.45583298,0.00019261,2]
[367227189,1750708009241,-395.69250391,0.00019261,2]
[367227190,1750708009256,-64.30749609,0.00019261,2]
[367227191,1750708009266,-863.27767022,0.00019261,2]
[367227192,1750708009280,-136.72232978,0.00019261,2]
[367227193,1750708009289,-790.86283653,0.00019261,2]
[367227194,1750708009307,-209.13716347,0.00019261,2]
[367227195,1750708009316,-167.87016844,0.00019261,2]
[367227196,1750708009330,-292.12983156,0.00019261,2]
[367227197,1750708009340,-460.0,0.00019261,2]
[367227198,1750708009349,-175.45533475,0.00019261,2]
[367227199,1750708009363,-284.54466525,0.00019261,2]
[367227200,1750708009372,-439.60367164,0.00019261,2]
[367227201,1750708018968,3129.08146812,0.0001911,2]
[367227202,1750708032089,-202.16255861,0.00019153,2]
[367227203,1750708032111,-460.0,0.00019253,2]
[367227204,1750708032137,-86.96511165,0.00019253,2]
[367227205,1750708049276,260.99871384,0.00018679,2]
[367227206,1750708052102,-177.79415863,0.00019252,2]
[367227207,1750708064813,5000.0,0.0001911,2]
[367227208,1750708080371,5000.0,0.0001911,2]
[367227209,1750708082364,-201.53758764,0.00019156,2]
[367227210,1750708082392,-282.20584137,0.00019252,2]
[367227211,1750708082422,-413.03488835,0.00019253,2]
[367227212,1750708082450,-460.0,0.00019253,2]
[367227213,1750708082478,-116.92669861,0.00019253,2]
[367227214,1750708082560,-385.92330139,0.00019253,2]
[367227215,1750708082591,-460.0,0.00019253,2]
[367227216,1750708082618,-460.0,0.00019253,2]
[367227217,1750708082646,-460.0,0.00019253,2]
[367227218,1750708082736,-1156.79,0.00019253,2]
[367227219,1750708082764,-460.0,0.00019253,2]
[367227220,1750708082822,-113.33333333,0.00019253,2]
[367227221,1750708082836,-346.66666667,0.00019253,2]
[367227222,1750708082846,-113.33333333,0.00019253,2]
[367227223,1750708082859,-99.75333333,0.00019253,2]
[367227224,1750708082895,-246.91333334,0.00019253,2]
[367227225,1750708082923,-460.0,0.00019253,2]
[367227226,1750708082953,-729.86,0.00019253,2]
[367227227,1750708083054,-300.0,0.00019252,2]
[367227228,1750708083087,-460.0,0.00019253,2]
[367227229,1750708083119,-679.66,0.00019253,2]
[367227230,1750708083234,-459.78666665,0.00019254,2]
[367227231,1750708083269,-40.21333335,0.00019254,2]
[367227232,1750708083298,-500.0,0.00019254,2]
[367227233,1750708083328,-409.6,0.00019256,2]
[367227234,1750708083359,-460.0,0.00019256,2]
[367227235,1750708083450,-738.3,0.00019256,2]
[367227236,1750708083556,-275.40666663,0.00019257,2]
[367227237,1750708083580,-738.3,0.00019257,2]
[367227238,1750708083616,-1194.28333337,0.00019257,2]
[367227239,1750708083646,-460.0,0.00019257,2]
[367227240,1750708083684,-202.44999996,0.00019257,2]
[367227241,1750708083708,-257.55000004,0.00019257,2]
[367227242,1750708083718,-460.0,0.00019257,2]
[367227243,1750708083728,-476.73333333,0.00019257,2]
[367227244,1750708083952,-214.26666667,0.00019257,2]
[367227245,1750708083985,-460.0,0.00019257,2]
[367227246,1750708084016,-500.0,0.00019257,2]
[367227247,1750708084046,-460.0,0.00019257,2]
[367227248,1750708084166,-460.0,0.00019257,2]
[367227249,1750708084196,-210.54537437,0.00019257,2]
[367227250,1750708084226,-460.0,0.00019257,2]
[367227251,1750708084255,-369.39258459,0.00019257,2]
[367227252,1750708084299,-333.45741541,0.00019257,2]
[367227253,1750708084327,-405.37084892,0.00019257,2]
[367227254,1750708084356,-460.0,0.00019257,2]
[367227255,1750708084385,-460.0,0.00019257,2]
[367227256,1750708084524,-460.0,0.00019257,2]
[367227257,1750708084554,-460.0,0.00019257,2]
[367227258,1750708084584,-460.0,0.00019257,2]
[367227259,1750708084613,-113.33333333,0.00019257,2]
[367227260,1750708084759,-346.66666667,0.00019257,2]
[367227261,1750708084788,-460.0,0.00019257,2]
[367227262,1750708084817,-460.0,0.00019257,2]
[367227263,1750708084845,-339.99999999,0.00019257,2]
[367227264,1750708085083,-120.00000001,0.00019257,2]
[367227265,1750708085112,-460.0,0.00019257,2]
[367227266,1750708085142,-500.0,0.00019257,2]
[367227267,1750708085171,-500.0,0.00019257,2]
[367227268,1750708085261,-460.0,0.00019257,2]
[367227269,1750708085289,-460.0,0.00019257,2]
[367227270,1750708085318,-480.66,0.00019257,2]
[367227271,1750708085346,-72.01333333,0.00019257,2]
[367227272,1750708085469,-387.98666667,0.00019257,2]
[367227273,1750708085499,-1204.61999999,0.00019257,2]
[367227274,1750708085585,-148.12000001,0.00019257,2]
[367227275,1750708085614,-460.0,0.00019257,2]
[367227276,1750708085641,-500.0,0.00019257,2]
[367227277,1750708085670,-500.0,0.00019257,2]
[367227278,1750708085736,-460.0,0.00019257,2]
[367227279,1750708085765,-460.0,0.00019257,2]
[367227280,1750708085794,-460.0,0.00019257,2]
[367227281,1750708085821,-113.33333333,0.00019257,2]
[367227282,1750708085934,-346.66666667,0.00019257,2]
[367227283,1750708085963,-460.0,0.00019257,2]
[367227284,1750708085992,-460.0,0.00019257,2]
[367227285,1750708086022,-339.99999999,0.00019257,2]
[367227286,1750708086147,-120.00000001,0.00019257,2]
[367227287,1750708086178,-1464.03,0.00019257,2]
[367227288,1750708086236,666.0,0.00018259,2]
[367227289,1750708086312,-460.0,0.00019257,2]
[367227290,1750708086341,-460.0,0.00019257,2]
[367227291,1750708086370,-460.0,0.00019257,2]
[367227292,1750708086398,-73.33333333,0.00019258,2]
[367227293,1750708086574,-426.66666667,0.00019258,2]
[367227294,1750708086603,-645.41210402,0.00019258,2]
[367227295,1750708086631,-540.0,0.00019258,2]
[367227296,1750708086912,-811.63702053,0.0001926,2]
[367227297,1750708086941,-811.63702053,0.0001926,2]
[367227298,1750708087094,-811.63702053,0.0001926,2]
[367227299,1750708087125,-811.63702053,0.0001926,2]
[367227300,1750708087220,-811.63702053,0.0001926,2]
[367227301,1750708087249,-811.63702053,0.0001926,2]
[367227302,1750708087361,-811.63702053,0.0001926,2]
[367227303,1750708087390,-811.63702053,0.0001926,2]
[367227304,1750708087527,-811.63702053,0.0001926,2]
[367227305,1750708087557,-811.63702053,0.0001926,2]
[367227306,1750708087739,-811.63702053,0.0001926,2]
[367227307,1750708087769,-500.0,0.0001926,2]
[367227308,1750708087800,-239.88887059,0.0001926,2]
[367227309,1750708087830,-20.39632836,0.00019261,2]
[367227310,1750708087935,-460.0,0.00019261,2]
[367227311,1750708087966,-460.0,0.00019261,2]
[367227312,1750708087995,-460.0,0.00019261,2]
[367227313,1750708088024,-113.33333333,0.00019261,2]
[367227314,1750708088115,-346.66666667,0.00019261,2]
[367227315,1750708088146,-460.0,0.00019261,2]
[367227316,1750708088382,-460.0,0.00019261,2]
[367227317,1750708088411,-339.99999999,0.00019261,2]
[367227318,1750708089065,-120.00000001,0.00019261,2]
[367227319,1750708089074,-54.89561974,0.00019261,2]
[367227320,1750708089150,-405.10438026,0.00019261,2]
[367227321,1750708089160,-94.89561974,0.00019261,2]
[367227322,1750708089244,-239.88887059,0.00019261,2]
[367227323,1750708089258,-20.39632836,0.00019261,2]
[367227324,1750708089277,-189.48889437,0.00019257,2]
[367227325,1750708089290,-218.06348282,0.00019257,2]
[367227326,1750708089300,-104.81918131,0.00019261,2]
[367227327,1750708089310,-137.11733587,0.00019261,2]
[367227328,1750708089324,-357.20266413,0.00019261,2]
[367227329,1750708089334,-102.79733587,0.00019261,2]
[367227330,1750708089347,-357.20266413,0.00019261,2]
[367227331,1750708089357,-102.79733587,0.00019261,2]
[367227332,1750708089371,-357.20266413,0.00019261,2]
[367227333,1750708089380,-102.79733587,0.00019261,2]
[367227334,1750708089469,-346.66666667,0.00019261,2]
[367227335,1750708089503,-10.53599746,0.00019261,2]
[367227336,1750708089512,-449.46400254,0.00019261,2]
[367227337,1750708089526,-10.53599746,0.00019261,2]
[367227338,1750708089537,-449.46400254,0.00019261,2]
[367227339,1750708089555,-75.95599746,0.00019261,2]
[367227340,1750708089565,-384.04400254,0.00019261,2]
[367227341,1750708095491,331.927477,0.0001911,2]
[367227342,1750708100204,3541.87466099,0.000189,2]
[367227343,1750708133526,-225.53694332,0.00019114,2]
[367227344,1750708133556,-508.0,0.00019252,2]
[367227345,1750708133587,-460.0,0.00019252,2]
[367227346,1750708133617,-113.40611336,0.00019252,2]
[367227347,1750708133687,-386.11388664,0.00019252,2]
[367227348,1750708133722,-765.08,0.00019252,2]
[367227349,1750708133752,-460.0,0.00019253,2]
[367227350,1750708133783,-89.84,0.00019253,2]
[367227351,1750708133842,-370.16,0.00019253,2]
[367227352,1750708133878,-664.63,0.00019253,2]
[367227353,1750708133907,-460.0,0.00019253,2]
[367227354,1750708133935,-290.74,0.00019253,2]
[367227355,1750708133987,-169.26,0.00019253,2]
[367227356,1750708134018,-691.25,0.00019253,2]
[367227357,1750708134046,-460.0,0.00019253,2]
[367227358,1750708134078,-237.5,0.00019253,2]
[367227359,1750708134206,-222.5,0.00019253,2]
[367227360,1750708134256,-1074.92,0.00019256,2]
[367227361,1750708134285,-16.26,0.00019256,2]
[367227362,1750708134334,-817.64,0.00019256,2]
[367227363,1750708134362,-471.04,0.00019256,2]
[367227364,1750708134419,-346.6,0.00019256,2]
[367227365,1750708134435,-471.04,0.00019256,2]
[367227366,1750708134451,-235.98,0.00019256,2]
[367227367,1750708134460,-186.66,0.00019257,2]
[367227368,1750708134494,-273.34,0.00019257,2]
[367227369,1750708134523,-460.0,0.00019257,2]
[367227370,1750708134574,-1533.32,0.00019257,2]
[367227371,1750708134608,-1148.29,0.00019257,2]
[367227372,1750708134638,-243.42,0.00019257,2]
[367227373,1750708134678,-216.58,0.00019253,2]
[367227374,1750708134726,-259.0,0.00019253,2]
[367227375,1750708134756,-216.58,0.00019257,2]
[367227376,1750708134784,-460.0,0.00019257,2]
[367227377,1750708134813,-460.0,0.00019257,2]
[367227378,1750708134894,-208.84,0.00019257,2]
[367227379,1750708134934,-251.16,0.00019257,2]
[367227380,1750708134962,-462.09,0.00019257,2]
[367227381,1750708134990,-460.0,0.00019257,2]
[367227382,1750708135018,-193.5,0.00019257,2]
[367227383,1750708135103,-266.5,0.00019257,2]
[367227384,1750708135131,-460.0,0.00019257,2]
[367227385,1750708135159,-460.0,0.00019257,2]
[367227386,1750708135188,-85.14145619,0.00019257,2]
[367227387,1750708135288,-456.71708762,0.00019257,2]
[367227388,1750708135319,-460.0,0.00019257,2]
[367227389,1750708135349,-460.0,0.00019257,2]
[367227390,1750708135566,-263.21708762,0.00019257,2]
[367227391,1750708135580,-196.78291238,0.00019257,2]
[367227392,1750708135589,-263.21708762,0.00019257,2]
[367227393,1750708135607,-196.78291238,0.00019257,2]
[367227394,1750708135617,-49.78291238,0.00019257,2]
[367227395,1750708135656,-410.21708762,0.00019257,2]
[367227396,1750708135686,-460.0,0.00019257,2]
[367227397,1750708135719,-113.58582476,0.00019257,2]
[367227398,1750708135778,-1032.39417524,0.00019257,2]
[367227399,1750708135874,-460.0,0.00019253,2]
[367227400,1750708135902,-460.0,0.00019257,2]
[367227401,1750708135930,-461.29345221,0.00019257,2]
[367227402,1750708135996,-237.41309558,0.00019257,2]
[367227403,1750708136029,-222.58690442,0.00019257,2]
[367227404,1750708136058,-460.0,0.00019257,2]
[367227405,1750708136091,-75.95599746,0.00019261,2]
[367227406,1750708136121,-460.0,0.00019261,2]
[367227407,1750708136152,-102.91419624,0.00019261,2]
[367227408,1750708136244,-357.08580376,0.00019261,2]
[367227409,1750708136278,-460.0,0.00019261,2]
[367227410,1750708136470,-460.0,0.00019262,2]
[367227411,1750708136500,-460.0,0.00019262,2]
[367227412,1750708136564,-460.0,0.00019262,2]
[367227413,1750708136594,-460.0,0.00019262,2]
[367227414,1750708136623,-483.21,0.00019262,2]
[367227415,1750708136673,-193.58,0.00019262,2]
[367227416,1750708136701,-460.0,0.00019262,2]
[367227417,1750708136731,-460.0,0.00019262,2]
[367227418,1750708136760,-312.84,0.00019262,2]
[367227419,1750708136880,-147.16,0.00019262,2]
[367227420,1750708136908,-460.0,0.00019262,2]
[367227421,1750708136936,-460.0,0.00019262,2]
[367227422,1750708136966,-405.68,0.00019262,2]
[367227423,1750708137122,-54.32,0.00019262,2]
[367227424,1750708137150,-460.0,0.00019262,2]